[Event "Werder IM-Turnier 2018"]
[Site "Bremen"]
[Date "2018.06.24"]
[Round "9"]
[White "Charmeteau, Sven"]
[Black "Kardoeus, David"]
[Result "1-0"]
[ECO "B94"]
[WhiteElo "2287"]
[BlackElo "2226"]
[Annotator "NA"]
[PlyCount "95"]
[EventDate "2018.06.23"]
[EventType "tourn"]
[EventCountry "GER"]
[SourceTitle "playchess.com"]
[Source "ChessBase"]
[SourceQuality "1"]
[TimeControl "40/5400+30:1800+30"]

1. e4 {[%emt 0:00:00]} c5 {[%emt 0:36:12]} 2. Nf3 {[%emt 0:00:00]} d6 {[%emt 0:00:23]} 3. d4 {[%emt 0:00:00]} cxd4 {[%emt 0:00:06]} 4. Nxd4 {[%emt 0:00:00]} Nf6 {[%emt 0:00:08]} 5. Nc3 $11 {[%emt 0:00:00] LiveBook: 98473 Games} a6 {[%emt 0:00:08]} 6. Bg5 {[%emt 0:00:01]} Nbd7 {[%emt 0:00:16]} 7. Qe2 {[%emt 0:01:31]} h6 {[%emt 0:01:23]} 8. Bh4 {[%emt 0:00:34]} g6 {[%emt 0:00:08]} 9. f4 {[%emt 0:16:55]} e5 {[%emt 0:09:10]} 10. O-O-O {[%emt 0:02:53]} exd4 {[%emt 0:10:43]} 11. e5 {[%emt 0:01:10]} dxc3 {[%emt 0:00:48]} 12. exf6+ {[%emt 0:00:27]} Ne5 {[%emt 0:00:18]} 13. fxe5 {[%emt 0:01:00]} Be6 {[%emt 0:03:47]} 14. Be1 {[%emt 0:21:58]} Qa5 {[%emt 0:07:12]} 15. Bxc3 {[%emt 0:01:28]} Qxa2 {[%emt 0:00:09]} 16. Rd4 {[%emt 0:11:34]} h5 {[%emt 0:05:31]} 17. Kd2 {[%emt 0:00:51]} Bh6+ {[%emt 0:01:52]} 18. Ke1 {[%emt 0:00:12]} dxe5 {[%emt 0:01:21]} 19. Re4 {[%emt 0:01:40]} Rd8 {[%emt 0:00:54]} 20. Kf2 {[%emt 0:02:29]} O-O {[%emt 0:01:43]} 21. h3 {[%emt 0:01:01]} Bg5 {[%emt 0:00:44]} 22. b3 {[%emt 0:01:49]} Rc8 {[%emt 0:01:17]} 23. Ra4 {[%emt 0:00:52]} Qxa4 {[%emt 0:00:31]} 24. bxa4 {[%emt 0:00:06]} Rxc3 {[%emt 0:00:17]} 25. Qxe5 {[%emt 0:03:26]} Bh4+ {[%emt 0:02:07]} 26. Kg1 {[%emt 0:00:27]} Rfc8 {[%emt 0:02:24]} 27. Bd3 {[%emt 0:00:33]} R8c5 {[%emt 0:02:44]} 28. Qd4 {[%emt 0:01:33]} Bg5 {[%emt 0:01:42]} 29. Kh2 {[%emt 0:00:06]} Rc8 {[%emt 0:07:47]} 30. h4 {[%emt 0:00:15]} Bh6 {[%emt 0:00:06]} 31. Rb1 {[%emt 0:00:25]} R3c7 {[%emt 0:00:45]} 32. Qe5 {[%emt 0:02:22]} Rc5 {[%emt 0:00:09]} 33. Qg3 {[%emt 0:00:51]} Bf5 {[%emt 0:00:36]} 34. Rxb7 {[%emt 0:13:49]} Bxd3 {[%emt 0:00:07]} 35. Qxd3 {[%emt 0:00:17]} Bf4+ {[%emt 0:00:13]} 36. Kg1 {[%emt 0:00:17]} Rxc2 {[%emt 0:00:40]} 37. Rb3 {[%emt 0:06:02]} Rd2 {[%emt 0:01:12]} 38. Qf1 {[%emt 0:00:11]} Be5 {[%emt 0:01:55]} 39. Rd3 {[%emt 0:00:11]} Rdc2 {[%emt 0:00:50]} 40. Rd1 {[%emt 0:00:34]} Ra2 {[%emt 0:31:13]} 41. Qxa6 {[%emt 0:31:09]} Rcc2 {[%emt 0:00:00]} 42. Qa8+ {[%emt 0:00:00]} Kh7 {[%emt 0:00:00]} 43. Qd5 {[%emt 0:00:00]} Rxg2+ {[%emt 0:00:00]} 44. Qxg2 {[%emt 0:00:00]} Rxg2+ {[%emt 0:00:00]} 45. Kxg2 {[%emt 0:00:00]} Bxf6 {[%emt 0:00:00]} 46. a5 {[%emt 0:00:00]} Bxh4 {[%emt 0:00:00]} 47. a6 {[%emt 0:00:00]} Bf2 {[%emt 0:00:00]} 48. Kxf2 {[%emt 0:00:00]} 1-0